bitfinex/quotes_ETHUSD_20241003
["timestamp","ask_amount","ask_price","bid_price","bid_amount"]
[1727982111548,7.25626,2349.5,2349.1,4.08009361]
[1727982112624,4.25674,2349.3,2348.9,4.85769361]
[1727982112959,4.25685,2349.2,2348.9,4.85769361]
[1727982113166,4.25685,2349.2,2348.5,4.84569361]
[1727982113167,4.25749,2348.8,2348.5,4.84569361]
[1727982113464,0.7506,2349.0,2348.5,10.36891304]
[1727982113465,4.25738,2348.9,2348.5,10.36891304]
[1727982114337,4.25738,2348.9,2348.6,0.55]
[1727982114534,5.00775,2349.0,2348.6,4.80784]
[1727982114999,5.00775,2349.0,2348.7,4.08009361]
[1727982115505,4.25732,2348.9,2348.7,4.08009361]
[1727982115823,5.0078,2349.0,2348.7,4.08009361]
[1727982116080,5.08083,2349.4,2348.9,4.83859361]
[1727982116222,5.08073,2349.4,2349.1,4.08009361]
[1727982116427,4.25643,2349.4,2349.1,4.08009361]
[1727982117251,4.25623,2349.5,2349.1,8.33693361]
[1727982117567,4.25623,2349.5,2349.1,9.67218297]
[1727982118490,3.0,2349.6,2349.4,0.55]
[1727982118654,3.0,2349.8,2349.6,4.08009361]
[1727982118851,4.25544,2350.0,2349.7,0.7585]
[1727982119159,4.25517,2350.1,2349.8,4.08009361]
[1727982119367,4.25558,2349.9,2349.7,0.7585]
[1727982119600,4.25532,2350.0,2349.7,0.7585]
[1727982119770,4.25517,2350.1,2349.8,4.08009361]
[1727982119950,4.25517,2350.1,2349.7,6.34942036]
[1727982119951,4.25454,2350.5,2350.0,4.08009361]
[1727982120289,0.507884,2350.5,2350.0,4.08009361]
[1727982120493,4.25495,2350.2,2350.0,4.08009361]
[1727982120695,8.51001,2350.2,2349.8,4.63009361]
[1727982120903,4.25495,2350.2,2349.8,0.55]
[1727982121118,4.25582,2349.8,2349.5,4.08009361]
[1727982121254,4.25582,2349.8,2349.3,5.01506]
[1727982121255,4.25604,2349.7,2349.3,4.83859361]
[1727982121450,4.25618,2349.6,2349.3,4.83859361]
[1727982121735,4.25624,2349.5,2349.3,0.7585]
[1727982121850,4.25666,2349.3,2349.0,0.81]
[1727982122061,4.25677,2349.2,2349.0,0.81]
[1727982123049,4.25677,2349.2,2348.8,0.81]
[1727982123254,4.25717,2349.0,2348.8,0.81]
[1727982123555,4.25698,2349.1,2348.8,0.81]
[1727982123999,4.25698,2349.1,2348.6,4.25777]
[1727982124000,4.25731,2348.9,2348.6,0.81]
[1727982124300,4.25732,2348.9,2348.6,1.85860125]
[1727982125984,8.51479,2348.9,2348.6,1.85860125]
[1727982126213,4.25732,2348.9,2348.6,1.85860125]
[1727982126519,4.25715,2349.0,2348.6,6.11644125]
[1727982126668,4.25715,2349.0,2348.6,1.85860125]
[1727982127231,4.25734,2348.9,2348.6,1.85860125]
[1727982128279,4.25715,2349.0,2348.7,1.01966349]
[1727982128481,4.25697,2349.1,2348.7,9.3573171]
[1727982129379,4.2567,2349.3,2348.7,9.3573171]
[1727982129380,8.51342,2349.3,2348.8,4.25747]
[1727982129707,4.2567,2349.3,2348.9,0.55]
[1727982129884,4.25678,2349.2,2348.9,0.55]
[1727982130087,4.25678,2349.2,2348.8,0.55]
[1727982130474,3.0,2349.4,2349.1,4.08009361]
[1727982130795,7.31,2349.6,2349.1,8.33702361]
[1727982131000,4.25625,2349.5,2349.1,4.08009361]
[1727982131197,4.25625,2349.5,2349.1,8.33701361]
[1727982131496,11.56607,2349.6,2349.1,12.59385361]
[1727982131710,4.25625,2349.5,2349.1,9.67177897]
[1727982132288,5.04761,2349.8,2349.3,0.7546]
[1727982132487,5.04761,2349.8,2349.3,4.83469361]
[1727982132488,4.25614,2349.6,2349.3,4.83469361]
[1727982132708,4.25588,2349.7,2349.3,9.09123361]
[1727982133078,4.25612,2349.6,2349.3,4.83469361]
[1727982133297,4.25588,2349.7,2349.3,4.83469361]
[1727982133298,4.25588,2349.7,2349.3,5.93232051]
[1727982133501,7.25561,2349.9,2349.3,10.18889051]
[1727982133780,7.93652941,2350.8,2349.7,0.7551]
[1727982133781,4.25534,2350.0,2349.7,0.7551]
[1727982134096,4.25551,2349.9,2349.7,4.83519361]
[1727982134311,4.25534,2350.0,2349.7,4.83519361]
[1727982134631,0.7963,2350.3,2349.7,0.7551]
[1727982134789,4.25548,2350.0,2349.7,0.7551]
[1727982135118,4.25551,2349.9,2349.7,0.7551]
[1727982136202,4.25595,2349.7,2349.5,0.793]
[1727982136408,8.51193,2349.7,2349.5,0.793]
[1727982136785,4.25595,2349.7,2349.5,0.793]
[1727982136934,4.25548,2350.0,2349.6,4.806]
[1727982137743,4.25559,2349.9,2349.6,0.55]
[1727982139290,4.25548,2350.0,2349.5,0.793]
[1727982139291,4.25575,2349.8,2349.5,0.793]
[1727982139491,4.25552,2349.9,2349.5,5.78604897]
[1727982139794,4.25552,2349.9,2349.6,0.55]
[1727982140664,4.2554,2350.0,2349.6,0.55]
[1727982141211,4.25562,2349.9,2349.6,0.55]
[1727982141415,3.0,2350.2,2349.5,0.793]
[1727982141658,4.2563,2349.5,2349.2,0.7709]
[1727982142028,4.25604,2349.6,2349.2,0.7709]
[1727982142343,8.51219,2349.6,2349.2,0.7709]
[1727982142551,4.25651,2349.4,2349.2,0.7709]
[1727982142714,4.25629,2349.5,2349.2,0.7709]
[1727982143159,4.25607,2349.6,2349.2,0.7709]
[1727982143461,4.25607,2349.6,2349.2,5.02758]
[1727982143760,4.25577,2349.8,2349.5,4.08009361]
[1727982143941,4.25577,2349.8,2349.7,4.08009361]
[1727982144140,4.25577,2349.8,2349.3,4.25658]
[1727982144141,4.25594,2349.7,2349.5,4.08009361]
[1727982144949,4.25604,2349.6,2349.5,4.08009361]
[1727982146016,4.25622,2349.5,2349.3,4.08009361]
[1727982146217,4.25622,2349.5,2349.1,12.34649361]
[1727982146414,4.25622,2349.5,2349.3,4.08009361]
[1727982147527,4.2564,2349.4,2349.3,4.08009361]
[1727982147732,4.25676,2349.2,2349.1,4.08009361]
[1727982148134,4.25658,2349.3,2349.1,4.08009361]
[1727982148135,4.25665,2349.3,2349.1,4.08009361]
[1727982148771,4.25676,2349.2,2349.1,4.08009361]
[1727982149121,4.25665,2349.3,2349.1,4.08009361]
[1727982149920,5.05449,2349.6,2349.1,4.08009361]
[1727982150117,4.25626,2349.5,2349.1,4.25692]
[1727982150347,4.25609,2349.6,2349.1,4.25692]
[1727982150758,4.25609,2349.6,2349.5,4.08009361]
[1727982153760,4.25656,2349.4,2349.3,4.08009361]
[1727982153931,4.25713,2349.0,2348.9,4.88359361]
[1727982154269,4.25769,2348.7,2348.5,4.08009361]
[1727982155142,4.25751,2348.8,2348.5,4.08009361]
[1727982156723,4.25751,2348.8,2348.7,4.08009361]
[1727982158127,5.06214,2348.9,2348.7,4.08009361]
[1727982158471,8.08767,2349.1,2348.7,4.08009361]
[1727982158677,4.25721,2349.0,2348.9,4.08009361]
[1727982160482,11.5664,2349.4,2348.9,4.08009361]
[1727982160483,4.25678,2349.2,2348.9,4.08009361]
[1727982160627,4.25697,2349.1,2348.9,4.08009361]
[1727982161926,4.25679,2349.2,2348.4,0.7791]
[1727982162266,4.25757,2348.8,2348.4,5.03729]
[1727982162838,4.25735,2348.9,2348.5,8.33804361]
[1727982166237,1.218479,2349.1,2348.4,5.03718]
[1727982166238,4.25758,2348.8,2348.4,5.03718]
[1727982166444,4.25735,2348.9,2348.5,4.25802]
[1727982167276,3.0,2349.1,2348.5,4.08009361]
[1727982167566,4.25715,2349.0,2348.6,5.58682]
[1727982167871,0.8148,2349.3,2348.6,5.58682]
[1727982168044,4.25702,2349.1,2348.7,4.25765]
[1727982168427,4.25722,2349.0,2348.6,5.58682]
[1727982170223,4.25722,2349.0,2348.6,6.07307151]
[1727982170832,4.25722,2349.0,2348.6,10.33079151]
[1727982171743,4.25722,2349.0,2348.6,6.07307151]
[1727982171744,8.51444,2349.0,2348.6,6.07307151]
[1727982171938,4.25696,2349.1,2348.3,4.08009361]
[1727982172271,4.25785,2348.6,2348.4,0.7944]
[1727982172479,4.25813,2348.5,2348.1,0.7518]
[1727982172765,4.25793,2348.6,2348.2,4.25854]
[1727982173670,5.05691,2348.9,2348.3,8.33833361]
[1727982173871,4.2575,2348.8,2348.4,5.08604]
[1727982174078,4.2575,2348.8,2348.5,0.55]
[1727982174954,7.25734,2348.9,2348.5,4.80796]
[1727982175496,4.25716,2349.0,2348.6,4.25784]
[1727982175645,5.01524,2349.2,2348.7,5.05896]
[1727982175848,4.25713,2349.0,2348.8,0.93168]
[1727982176077,4.25713,2349.0,2348.7,0.8013]
[1727982176660,4.25701,2349.1,2348.7,5.05887]
[1727982176862,4.25701,2349.1,2348.7,0.8013]
[1727982177103,4.25715,2349.0,2348.7,0.8013]
[1727982180479,8.5144,2349.0,2348.7,0.8013]
[1727982180796,4.25715,2349.0,2348.7,0.8013]
[1727982180993,4.25742,2348.9,2348.7,1.95658279]
[1727982181293,4.25742,2348.9,2348.5,5.61813]
[1727982181799,4.2576,2348.8,2348.5,0.8101]
[1727982182014,4.25801,2348.6,2348.3,0.7686]
[1727982182477,4.25775,2348.7,2348.3,5.02687]
[1727982182837,4.25733,2348.9,2348.5,4.25795]
[1727982182982,4.25758,2348.8,2348.4,5.02665]
[1727982183320,3.0,2349.0,2348.4,0.7686]
[1727982183518,4.25797,2348.6,2348.3,0.55]
[1727982184520,4.25775,2348.7,2348.3,0.55]
[1727982185116,4.258,2348.6,2348.2,5.08763]
[1727982185473,8.51602,2348.6,2348.2,0.8292]
[1727982185690,4.258,2348.6,2348.2,0.8292]
[1727982185894,4.25813,2348.5,2348.2,0.8292]
[1727982187639,4.25787,2348.6,2348.2,5.08776]
[1727982187791,8.51589,2348.6,2348.2,0.8292]
[1727982187995,1.0594,2348.9,2348.2,6.02228]
[1727982188205,0.7594,2348.9,2348.3,0.55]
[1727982188403,4.25753,2348.8,2348.4,4.2581]
[1727982188739,4.25753,2348.8,2348.4,8.51624]
[1727982189642,4.25749,2348.8,2348.4,4.2581]
[1727982189933,4.25749,2348.8,2348.4,5.341145]
[1727982190093,0.7594,2348.9,2348.4,1.083045]
[1727982190294,4.2583,2348.4,2348.2,0.8292]
[1727982190501,4.25798,2348.6,2348.2,0.8292]
[1727982190502,4.25807,2348.5,2348.2,0.8292]
[1727982190801,4.25797,2348.6,2348.2,0.8292]
[1727982191028,4.25814,2348.5,2348.2,0.8292]
[1727982193210,8.51556,2348.7,2348.2,0.8292]
[1727982193535,3.7594,2348.9,2348.2,0.8292]
[1727982193745,4.25756,2348.8,2348.3,4.25825]
[1727982193942,4.25773,2348.7,2348.3,4.25825]
[1727982194510,8.01675,2348.9,2348.3,0.55]
[1727982194713,7.25735,2348.9,2348.4,0.7902]
[1727982194953,4.25756,2348.8,2348.4,5.04837]
[1727982195116,8.51479,2348.9,2348.5,4.817837]
[1727982195317,4.25733,2348.9,2348.5,4.817837]
[1727982195650,8.51479,2348.9,2348.5,4.817837]
[1727982195849,8.51477,2348.9,2348.5,4.817837]
[1727982196033,4.25733,2348.9,2348.5,4.817837]
[1727982196220,4.25733,2348.9,2348.6,0.5608037]
[1727982197050,4.25753,2348.8,2348.6,0.5608037]
[1727982197455,4.25733,2348.9,2348.6,0.5608037]
[1727982198839,4.25733,2348.9,2348.7,0.7989]
[1727982199242,4.25717,2349.0,2348.7,0.7989]
[1727982200260,4.25732,2348.9,2348.7,0.7989]
[1727982200456,4.25741,2348.9,2348.7,0.7989]
[1727982201010,7.25688,2349.2,2348.8,4.25741]
[1727982201264,4.2565,2349.4,2349.0,5.04466]
[1727982201415,4.25584,2349.8,2349.1,4.25694]
[1727982201621,8.51228,2349.6,2349.2,5.04436]
[1727982202015,8.51228,2349.6,2349.2,0.7876]
[1727982202016,4.25624,2349.5,2349.2,0.7876]
[1727982202443,5.0746,2349.9,2349.2,0.7876]
[1727982202444,5.07471,2349.9,2349.3,4.80649]
[1727982202778,4.25458,2350.5,2349.6,0.55]
[1727982202779,0.7906,2350.3,2349.6,0.55]
[1727982203066,4.25453,2350.5,2349.9,0.8065]
[1727982203067,4.25497,2350.2,2349.9,0.8065]
[1727982203224,4.25514,2350.1,2349.9,0.8065]
[1727982204223,4.25497,2350.2,2349.9,0.8065]
[1727982205128,4.25469,2350.4,2349.9,0.8065]
[1727982205129,4.2548,2350.3,2349.9,0.8065]
[1727982205755,4.25496,2350.2,2349.9,0.8065]
[1727982206077,4.25461,2350.4,2350.0,0.55]
[1727982206228,4.25451,2350.5,2350.0,4.80524]
[1727982206427,4.25451,2350.5,2350.0,9.06047]
[1727982206630,0.7572,2351.0,2350.3,4.25476]
[1727982206883,4.25425,2350.6,2350.4,0.7969]
[1727982208600,4.25425,2350.6,2350.2,0.55]
[1727982208601,4.25449,2350.5,2350.2,0.55]
[1727982209489,4.25449,2350.5,2350.1,0.7643]
[1727982209646,4.25504,2350.2,2349.9,8.2702]
[1727982210245,8.51012,2350.2,2349.9,8.2702]
[1727982210854,4.25504,2350.2,2349.9,8.2702]
[1727982211372,4.25474,2350.4,2349.9,9.522803]
[1727982211573,4.25472,2350.4,2350.0,0.55]
[1727982212162,4.25472,2350.4,2350.0,4.8053]
[1727982212450,4.25496,2350.2,2349.9,8.2702]
[1727982212657,4.25523,2350.1,2349.9,8.2702]
[1727982214491,4.25523,2350.1,2349.9,0.8102]
[1727982214790,4.25534,2350.0,2349.7,0.7933]
[1727982215002,0.8284,2350.2,2349.5,4.25607]
[1727982215003,4.25568,2349.8,2349.5,0.7933]
[1727982215147,4.25586,2349.7,2349.5,0.7933]
[1727982215355,4.25559,2349.9,2349.5,5.04951]
[1727982215662,4.25571,2349.8,2349.5,0.7933]
[1727982215856,4.25573,2349.8,2349.2,0.7933]
[1727982216063,4.25597,2349.7,2349.2,10.54005936]
[1727982216275,4.25597,2349.7,2349.3,4.25658]
[1727982216806,4.25605,2349.6,2349.3,0.55]
[1727982217097,8.51226,2349.6,2349.2,0.7933]
[1727982217260,4.25627,2349.5,2349.2,0.7933]
[1727982217461,4.25627,2349.5,2348.9,5.07211]
[1727982217462,4.25656,2349.4,2348.9,5.07211]
[1727982217764,4.25658,2349.3,2348.9,6.46915273]
[1727982217963,4.25658,2349.3,2348.9,2.21194273]
[1727982218290,0.8087,2349.4,2348.9,2.21194273]
[1727982218487,4.2566,2349.3,2348.9,5.07209]
[1727982218798,5.06512,2349.4,2349.0,0.55]
[1727982218961,5.06512,2349.4,2349.0,4.80712]
[1727982219802,4.25642,2349.4,2349.0,4.80712]
[1727982220773,4.25645,2349.4,2349.0,4.80712]
[1727982220979,4.25645,2349.4,2349.0,5.795041]
[1727982221165,4.25645,2349.4,2349.0,1.537921]
[1727982221370,4.25707,2349.1,2348.9,0.8148]
[1727982222391,4.25671,2349.3,2348.9,0.8148]
[1727982222562,4.25652,2349.4,2348.9,0.8148]
[1727982222910,4.25647,2349.4,2349.0,4.25696]
[1727982223082,5.00784,2349.6,2349.1,0.507176]
[1727982223292,4.25652,2349.4,2349.1,0.507176]
[1727982224111,7.25593,2349.7,2349.2,5.02634]
[1727982224282,4.25572,2349.8,2349.4,4.25638]
[1727982224707,4.25572,2349.8,2349.2,5.02636]
[1727982224907,4.2559,2349.7,2349.3,5.21792296]
[1727982225116,4.25571,2349.8,2349.3,5.21792296]
[1727982225379,4.25569,2349.8,2349.4,5.08482]
[1727982225693,4.25569,2349.8,2349.4,9.34114]
[1727982226211,4.25569,2349.8,2349.4,5.08482]
[1727982226408,4.25569,2349.8,2349.5,0.6046183]
[1727982226810,4.25595,2349.7,2349.5,0.6046183]
[1727982227031,4.25611,2349.6,2349.4,0.8285]
[1727982227638,4.25595,2349.7,2349.4,0.8285]
[1727982227836,4.25611,2349.6,2349.4,0.8285]
[1727982228133,4.25534,2350.0,2349.4,0.8285]
[1727982228337,4.25593,2349.7,2349.4,0.8285]
[1727982228495,4.25593,2349.7,2349.4,1.8588083]
[1727982228693,4.25612,2349.6,2349.4,1.8588083]
[1727982228938,4.25612,2349.6,2349.3,0.55]
[1727982229089,4.25624,2349.5,2349.2,0.8212]
[1727982229291,4.25641,2349.4,2349.2,0.8212]
[1727982229902,0.8232,2349.7,2349.0,0.8212]
[1727982229903,4.25688,2349.2,2349.0,0.8212]
[1727982230139,4.25634,2349.5,2349.1,4.25687]
[1727982230933,4.25634,2349.5,2349.1,8.51374]
[1727982231138,4.25634,2349.5,2349.1,0.55]
[1727982231446,4.25652,2349.4,2349.0,5.07823]
[1727982231630,4.25652,2349.4,2349.0,6.011786]
[1727982233801,4.25652,2349.4,2349.0,10.268836]
[1727982234413,4.25652,2349.4,2349.0,6.011786]
[1727982234845,4.25652,2349.4,2349.0,1.754756]
[1727982234846,4.25666,2349.3,2349.0,1.754756]
[1727982235045,4.25666,2349.3,2349.0,0.8212]
[1727982236235,4.25652,2349.4,2349.0,5.07824]
[1727982236439,4.2563,2349.5,2349.1,0.55]
[1727982236733,4.25618,2349.6,2349.1,0.55]
[1727982236941,4.25635,2349.5,2349.1,1.538521]
[1727982237161,4.25635,2349.5,2349.0,5.07817]
[1727982237162,4.25655,2349.4,2349.0,5.07817]
[1727982239359,4.25635,2349.5,2349.1,4.80691]
[1727982239562,8.51266,2349.5,2349.1,4.80691]
[1727982239762,4.25645,2349.4,2349.1,0.55]
[1727982239922,8.51267,2349.5,2349.1,4.80693]
[1727982240524,4.25648,2349.4,2349.1,0.55]
[1727982240764,4.25684,2349.2,2348.6,0.7913]
[1727982240973,4.2574,2348.9,2348.6,0.7913]
[1727982241423,4.25715,2349.0,2348.6,5.04901]
[1727982241627,4.25715,2349.0,2348.6,6.725697]
[1727982243316,4.25777,2348.7,2348.3,0.7935]
[1727982243487,4.25785,2348.6,2348.3,0.7935]
[1727982243682,4.25805,2348.5,2348.3,0.7935]
[1727982244100,4.25786,2348.6,2348.3,0.7935]
[1727982244413,4.25786,2348.6,2348.2,4.25857]
[1727982244703,0.7965,2348.6,2348.3,4.80837]
[1727982246593,4.25749,2348.8,2348.5,0.7795]
[1727982247926,4.25779,2348.7,2348.3,0.55]
[1727982248204,4.25785,2348.6,2348.3,0.55]
[1727982248369,4.25812,2348.5,2348.0,0.7723]
[1727982248573,4.25835,2348.4,2348.0,5.03124]
[1727982249298,4.25812,2348.5,2348.0,6.706162]
[1727982249473,5.03787,2348.7,2348.3,4.2583]
[1727982249711,7.2576,2348.8,2348.4,5.03049]
[1727982249905,3.0,2348.8,2348.4,5.03049]
[1727982250102,3.0,2348.8,2348.4,9.28859]
[1727982250332,3.0,2348.8,2348.4,10.62545836]
[1727982250629,7.25749,2348.8,2348.4,6.36726836]
[1727982251602,7.25749,2348.8,2348.4,2.10916836]
[1727982251807,4.2578,2348.7,2348.4,0.7723]
[1727982252108,4.25788,2348.6,2348.4,0.7723]
[1727982252408,3.0,2348.8,2348.4,0.7723]
[1727982252409,7.25751,2348.8,2348.4,0.7723]
[1727982252613,4.25769,2348.7,2348.4,0.7723]
[1727982253232,4.25767,2348.7,2348.4,0.7723]
[1727982254731,4.25787,2348.6,2348.4,0.7723]
[1727982257170,4.25741,2348.9,2348.5,4.63009361]
[1727982257372,4.25741,2348.9,2348.7,4.08009361]
[1727982257855,4.25741,2348.9,2348.6,0.7606]
[1727982258067,0.7604,2349.2,2348.6,0.7606]
[1727982258236,4.25738,2348.9,2348.6,0.7606]
[1727982258433,4.25738,2348.9,2348.6,2.2423816]
[1727982261258,3.7604,2349.2,2348.4,0.7602]
[1727982261534,4.25793,2348.6,2348.4,0.7602]
[1727982264861,4.25775,2348.7,2348.4,0.7602]
[1727982268187,4.25786,2348.6,2348.4,0.7602]
[1727982268575,4.25775,2348.7,2348.4,0.7602]
[1727982269174,4.2579,2348.6,2348.3,0.55]
[1727982270406,4.25749,2348.8,2348.6,0.7688]
[1727982272601,4.25767,2348.7,2348.6,0.7688]
[1727982273303,4.25749,2348.8,2348.6,0.7688]
[1727982273831,4.25767,2348.7,2348.3,10.27996597]
[1727982274014,4.25767,2348.7,2348.4,0.8149]
[1727982275397,4.25749,2348.8,2348.4,5.79724939]
[1727982277550,8.51515,2348.8,2348.4,5.79724939]
[1727982277696,4.2574,2348.9,2348.5,4.80798]
[1727982277903,4.25756,2348.8,2348.5,4.63009361]
[1727982278212,4.25774,2348.7,2348.4,0.8149]
[1727982280044,4.25739,2348.9,2348.5,4.63009361]
[1727982280211,4.25739,2348.9,2348.5,8.88810361]
[1727982281246,4.2576,2348.8,2348.5,0.55]
[1727982281537,4.25739,2348.9,2348.5,4.808]
[1727982281538,8.51479,2348.9,2348.5,4.808]
[1727982281723,4.25739,2348.9,2348.5,4.808]
[1727982282648,7.25676,2349.2,2348.5,4.808]
[1727982282649,4.25681,2349.2,2348.9,0.8148]
[1727982282825,4.25645,2349.4,2349.1,4.08009361]
[1727982283208,4.25625,2349.5,2349.3,4.08009361]
[1727982283548,4.25445,2350.5,2349.3,9.95115997]
[1727982283549,4.25586,2349.7,2349.3,9.95115997]
[1727982284143,4.25586,2349.7,2349.3,5.69458997]
[1727982285453,4.25572,2349.8,2349.4,0.55]
[1727982285672,4.25572,2349.8,2349.5,4.08009361]
[1727982285803,5.07968,2350.0,2349.5,4.08009361]
[1727982285804,4.2559,2349.7,2349.5,4.08009361]
[1727982285999,4.2559,2349.7,2349.4,0.55]
[1727982286316,4.25611,2349.6,2349.4,0.55]
[1727982287505,8.51187,2349.7,2349.4,0.55]
[1727982287704,4.2559,2349.7,2349.4,0.55]
[1727982288016,4.25606,2349.6,2349.3,0.7808]
[1727982288205,4.25622,2349.5,2349.2,0.55]
[1727982288550,5.05026,2349.6,2349.2,0.55]
[1727982288839,4.25588,2349.7,2349.3,8.33666361]
[1727982289421,5.04954,2350.0,2349.6,4.80601]
[1727982289746,4.25534,2350.0,2349.6,4.80601]
[1727982289915,5.0493,2350.2,2349.7,8.33594361]
[1727982290116,0.7942,2350.4,2349.9,9.13847361]
[1727982290462,3.68713295,2351.3,2350.1,8.33522361]
[1727982290463,5.06632,2350.6,2350.1,8.33522361]
[1727982290748,4.25432,2350.6,2350.1,8.33522361]
[1727982290913,4.25432,2350.6,2350.3,4.08009361]
[1727982291137,4.25432,2350.6,2350.3,4.85159361]
[1727982291340,4.25459,2350.4,2350.3,0.7715]
[1727982291539,4.25459,2350.4,2350.1,4.08009361]
[1727982291540,4.25459,2350.4,2350.1,4.85159361]
[1727982292132,4.25479,2350.3,2350.1,0.7715]
[1727982292861,4.25461,2350.4,2350.1,0.7715]
[1727982293266,4.25461,2350.4,2349.9,13.34954361]
[1727982293479,4.25461,2350.4,2350.0,0.55]
[1727982293855,4.25461,2350.4,2350.0,4.8053]
[1727982295334,4.25461,2350.4,2349.9,9.09413361]
[1727982295530,4.25489,2350.3,2349.9,9.09413361]
[1727982296271,4.25489,2350.3,2349.9,4.83879361]
[1727982296272,4.25497,2350.2,2349.9,4.83879361]
[1727982296434,4.25497,2350.2,2349.9,0.7587]
[1727982297854,4.25516,2350.1,2349.9,0.7587]
[1727982298697,4.25497,2350.2,2349.9,0.7587]
[1727982300348,4.25417,2350.7,2350.1,4.08009361]
[1727982300349,3.0,2350.5,2350.1,4.08009361]
[1727982300550,4.25459,2350.5,2350.1,4.08009361]
[1727982300849,4.25459,2350.5,2349.7,4.25583]
[1727982300850,0.7532,2350.4,2349.7,8.33585361]
[1727982301084,4.25542,2350.0,2349.7,4.84129361]
[1727982301267,4.25552,2349.9,2349.7,0.7612]
[1727982301483,4.25586,2349.7,2349.5,0.7612]
[1727982301652,4.25575,2349.8,2349.5,0.7612]
[1727982302291,8.51158,2349.8,2349.5,0.7612]
[1727982302504,4.25586,2349.7,2349.5,0.7612]
[1727982302679,0.7532,2349.9,2349.5,0.7612]
[1727982302857,4.25577,2349.8,2349.5,0.7612]
[1727982303805,4.25605,2349.6,2349.2,0.55]
[1727982304299,7.25599,2349.7,2349.3,4.25646]
[1727982304482,7.25599,2349.7,2349.3,8.33655361]
[1727982304655,4.25599,2349.7,2349.3,8.33655361]
[1727982304860,7.25572,2349.8,2349.3,8.33655361]
[1727982305051,7.25542,2350.0,2349.6,4.25595]
[1727982305253,3.0,2350.1,2349.7,4.25576]
[1727982305578,4.25558,2349.9,2349.5,13.41485361]
[1727982305788,4.25558,2349.9,2349.5,9.15871361]
[1727982306737,4.25576,2349.8,2349.5,0.55]
[1727982307097,4.25589,2349.7,2349.4,0.55]
[1727982307317,4.25582,2349.8,2349.4,0.55]
[1727982307613,4.25587,2349.7,2349.4,0.55]
[1727982307815,4.25606,2349.6,2349.3,4.85889361]
[1727982308333,4.25587,2349.7,2349.3,4.85889361]
[1727982308501,4.25587,2349.7,2349.3,10.45268597]
[1727982309005,8.51182,2349.7,2349.3,10.45268597]
[1727982309190,4.25587,2349.7,2349.3,10.45268597]
[1727982310937,0.7666,2349.9,2349.3,0.7788]
[1727982311234,4.25617,2349.6,2349.3,0.7788]
[1727982311895,4.25572,2349.8,2349.4,4.25631]
[1727982312097,5.02219,2349.9,2349.4,5.16783036]
[1727982312434,4.25573,2349.8,2349.4,5.23877512]
[1727982312749,4.25573,2349.8,2349.4,5.23876512]
[1727982313093,4.25573,2349.8,2349.4,9.49509512]
[1727982313431,4.25573,2349.8,2349.4,9.42415036]
[1727982313658,4.25573,2349.8,2349.4,5.16782036]
[1727982314654,5.02093,2350.1,2349.6,1.3308]
[1727982314809,0.7657,2350.7,2350.0,0.7808]
[1727982315157,4.25456,2350.5,2350.1,8.33522361]
[1727982315452,4.25456,2350.5,2350.3,4.08009361]
[1727982316648,7.31,2351.0,2350.4,0.802]
[1727982316649,8.0913,2351.0,2350.4,0.802]
[1727982316816,8.50831,2350.7,2350.4,0.802]
[1727982317149,8.50833,2350.7,2350.4,0.802]
[1727982317384,4.25415,2350.7,2350.4,0.802]
[1727982317746,8.50832,2350.7,2350.4,0.802]
[1727982317957,8.50832,2350.7,2350.5,4.08009361]
[1727982318254,4.25415,2350.7,2350.5,4.08009361]
[1727982318413,4.25423,2350.6,2350.5,4.08009361]
[1727982319370,4.25441,2350.5,2350.4,1.71569536]
[1727982319523,4.25441,2350.5,2350.1,4.99169597]
[1727982319721,4.25495,2350.3,2350.0,1.3174]
[1727982319937,0.8167,2350.6,2349.9,7.46]
[1727982319938,4.25531,2350.0,2349.9,7.46]
[1727982320132,4.25531,2350.0,2349.6,0.7674]
[1727982320133,4.25557,2349.9,2349.6,0.7674]
[1727982320536,4.25531,2350.0,2349.6,5.02343]
[1727982321227,4.25516,2350.1,2349.7,0.55]
[1727982321421,4.25516,2350.1,2349.7,8.88594361]
[1727982322072,4.25508,2350.2,2349.8,4.25557]
[1727982322239,4.25508,2350.2,2349.9,4.08009361]
[1727982322764,4.25506,2350.2,2349.9,4.08009361]
[1727982322929,8.51017,2350.2,2349.9,4.08009361]
[1727982323131,4.25506,2350.2,2349.9,4.08009361]
[1727982323331,8.50941,2350.4,2350.0,4.8053]
[1727982323566,4.25484,2350.3,2350.0,1.367]
[1727982323873,4.25469,2350.4,2350.1,4.25511]
[1727982323874,3.0,2350.4,2350.1,4.25511]
[1727982324075,3.0,2350.4,2350.0,5.62231]
[1727982324076,7.25459,2350.4,2350.0,5.62229]
[1727982327330,4.25516,2350.1,2349.8,0.8064]
[1727982327731,8.51041,2350.1,2349.8,0.8064]
[1727982328175,4.25516,2350.1,2349.8,0.8064]
[1727982328693,3.0,2350.5,2349.8,0.8064]
[1727982328875,4.25503,2350.2,2349.9,4.08009361]
[1727982331194,7.25441,2350.5,2350.1,4.08009361]
[1727982331361,7.25441,2350.5,2350.1,8.33522361]
[1727982331562,11.50896,2350.5,2350.1,8.33522361]
[1727982331905,4.25423,2350.6,2350.3,4.08009361]
[1727982332199,4.25411,2350.7,2350.3,8.33476361]
[1727982332464,4.25411,2350.7,2350.4,0.11213032]
[1727982332615,4.25396,2350.8,2350.4,4.36669032]
[1727982332774,4.25396,2350.8,2350.4,5.71350571]
[1727982333129,4.25369,2350.9,2350.6,0.8101]
[1727982333270,4.25394,2350.8,2350.6,0.8101]